[Event "European Rapid Championship 2021"]
[Site "Katowice"]
[Date "2021.12.18"]
[Round "5.3"]
[White "Laurusas, Tomas"]
[Black "Brodowski, Piotr"]
[Result "0-1"]
[ECO "A41"]
[WhiteElo "2553"]
[BlackElo "2414"]
[Annotator "ChessBase"]
[PlyCount "88"]
[EventDate "2021.12.18"]
[EventType "swiss"]
[EventCountry "POL"]
[SourceTitle "playchess.com"]
[Source "ChessBase"]
[SourceQuality "1"]
[TimeControl "900+10"]

1. d4 {[%emt 0:00:02]} d6 {[%emt 0:00:01]} 2. Nf3 {[%emt 0:00:11]} g6 {[%emt 0:
00:03]} 3. c4 {[%emt 0:00:07]} Nf6 {[%emt 0:00:04]} 4. Nc3 {[%emt 0:00:50]} Bf5
{[%emt 0:00:17]} 5. e3 {[%emt 0:03:52]} Bg7 {[%emt 0:00:04]} 6. Be2 {[%emt 0:
00:02]} O-O {[%emt 0:00:06]} 7. O-O {[%emt 0:00:03]} c5 {[%emt 0:01:10]} 8. Nh4
{[%emt 0:01:50]} Bd7 {[%emt 0:00:16]} 9. b3 {[%emt 0:00:13]} cxd4 {[%emt 0:02:
41]} 10. exd4 {[%emt 0:00:02]} Nc6 {[%emt 0:00:04]} 11. d5 {[%emt 0:01:02]} Ne5
{[%emt 0:01:46]} 12. h3 {[%emt 0:02:00]} Be8 {[%emt 0:01:14]} 13. Be3 {[%emt 0:
00:10]} a6 {[%emt 0:00:13]} 14. Qd2 {[%emt 0:00:49]} Rc8 {[%emt 0:00:09]} 15.
Rac1 {[%emt 0:00:05]} Qa5 {[%emt 0:02:12]} 16. Rfd1 {[%emt 0:00:47]} b5 {
[%emt 0:02:45]} 17. cxb5 {[%emt 0:00:02]} axb5 {[%emt 0:00:10]} 18. Nxb5 {
[%emt 0:00:01]} Qxd2 {[%emt 0:00:34]} 19. Bxd2 {[%emt 0:00:02]} Bxb5 {[%emt 0:
01:27]} 20. Bxb5 {[%emt 0:00:04]} Ne4 {[%emt 0:02:16]} 21. Be1 {[%emt 0:03:17]}
Bh6 {[%emt 0:00:35]} 22. Rxc8 {[%emt 0:00:21]} Rxc8 {[%emt 0:00:00]} 23. a4 {
[%emt 0:02:40]} Nc3 {[%emt 0:00:35]} 24. Ba6 {[%emt 0:00:02]} Rc7 {[%emt 0:00:
09]} 25. Ra1 {[%emt 0:00:32]} Nxd5 {[%emt 0:00:07]} 26. b4 {[%emt 0:00:02]} Bg7
{[%emt 0:00:07]} 27. Rb1 {[%emt 0:00:03]} Ra7 {[%emt 0:00:22]} 28. b5 {[%emt 0:
00:10]} Nc4 {[%emt 0:00:08]} 29. a5 {[%emt 0:00:08]} Bd4 {[%emt 0:00:14]} 30.
Nf3 {[%emt 0:00:08]} Bc5 {[%emt 0:00:00]} 31. Rc1 {[%emt 0:00:17]} Nb2 {
[%emt 0:00:11]} 32. Bc8 {[%emt 0:00:22]} Nd3 {[%emt 0:00:02]} 33. b6 {[%emt 0:
00:02]} Bxb6 {[%emt 0:00:21]} 34. axb6 {[%emt 0:00:08]} Nxb6 {[%emt 0:00:01]}
35. Rc3 {[%emt 0:00:10]} Nc5 {[%emt 0:00:22]} 36. Bg4 {[%emt 0:00:21]} h5 {
[%emt 0:00:06]} 37. Bxh5 {[%emt 0:00:04]} gxh5 {[%emt 0:00:01]} 38. Nd4 {
[%emt 0:00:01]} Ra1 {[%emt 0:00:05]} 39. Kf1 {[%emt 0:00:00]} Ne4 {[%emt 0:00:
22]} 40. Rc2 {[%emt 0:00:35]} Nd5 {[%emt 0:00:16]} 41. g3 {[%emt 0:00:11]} f6 {
[%emt 0:00:08]} 42. Ke2 {[%emt 0:00:02]} Kf7 {[%emt 0:00:10]} 43. f3 {[%emt 0:
00:12]} Nc5 {[%emt 0:00:06]} 44. Rb2 {[%emt 0:00:07]} Rxe1+ {[%emt 0:00:04]}
0-1

[Event "European Rapid Championship 2021"]
[Site "Katowice"]
[Date "2021.12.18"]
[Round "5.3"]
[White "Szpar, Milosz"]
[Black "Martinkus, Rolandas"]
[Result "1/2-1/2"]
[ECO "C80"]
[WhiteElo "2315"]
[BlackElo "2033"]
[Annotator "NA"]
[PlyCount "61"]
[EventDate "2021.12.18"]
[EventType "swiss"]
[EventCountry "POL"]
[SourceTitle "playchess.com"]
[Source "ChessBase"]
[SourceQuality "1"]
[TimeControl "900+10"]

1. e4 {[%emt 0:00:03]} e5 {[%emt 0:00:01]} 2. Nf3 {[%emt 0:00:05]} Nc6 {
[%emt 0:00:01]} 3. Bb5 {[%emt 0:00:04]} a6 {[%emt 0:00:01]} 4. Ba4 {[%emt 0:00:
02]} Nf6 {[%emt 0:00:02]} 5. O-O {[%emt 0:00:03]} Nxe4 {[%emt 0:00:02]} 6. d4 {
[%emt 0:00:04]} b5 {[%emt 0:00:01]} 7. Bb3 {[%emt 0:00:02]} d5 {[%emt 0:00:02]}
8. dxe5 {[%emt 0:00:08]} Be6 {[%emt 0:00:01]} 9. Be3 {[%emt 0:00:25]} Bc5 {
[%emt 0:01:14]} 10. Bxc5 {[%emt 0:00:49]} Nxc5 {[%emt 0:00:01]} 11. Nd4 {
[%emt 0:00:07]} Nxd4 {[%emt 0:01:53]} 12. Qxd4 {[%emt 0:00:04]} Nb7 {[%emt 0:
00:01]} 13. c3 {[%emt 0:00:27]} c5 {[%emt 0:00:10]} 14. Qe3 {[%emt 0:00:18]}
Qd7 {[%emt 0:00:21]} 15. Nd2 {[%emt 0:00:34]} d4 {[%emt 0:01:51]} 16. Bxe6 {
[%emt 0:01:38]} fxe6 {[%emt 0:00:02]} 17. cxd4 {[%emt 0:00:34]} cxd4 {[%emt 0:
00:02]} 18. Qf3 {[%emt 0:00:08]} Rf8 {[%emt 0:00:21]} 19. Qe4 {[%emt 0:00:54]}
g6 {[%emt 0:01:29]} 20. Rac1 {[%emt 0:00:35]} Rd8 {[%emt 0:01:10]} 21. Rc6 {
[%emt 0:01:37]} Qd5 {[%emt 0:00:57]} 22. Rfc1 {[%emt 0:01:53]} Na5 {[%emt 0:00:
31]} 23. Rxa6 {[%emt 0:04:32]} Nc4 {[%emt 0:00:32]} 24. Qxd5 {[%emt 0:00:21]}
exd5 {[%emt 0:00:03]} 25. Nf3 {[%emt 0:00:16]} d3 {[%emt 0:00:23]} 26. Ra7 {
[%emt 0:01:22]} Rf7 {[%emt 0:00:45]} 27. Rxf7 {[%emt 0:00:37]} Kxf7 {[%emt 0:
00:01]} 28. b3 {[%emt 0:00:12]} Nb2 {[%emt 0:00:44]} 29. Rb1 {[%emt 0:00:24]}
Rc8 {[%emt 0:00:17]} 30. Kf1 {[%emt 0:00:06]} Rc2 {[%emt 0:00:23]} 31. Nd4 {
[%emt 0:00:06]} 1/2-1/2

[Event "European Rapid Championship 2021"]
[Site "Katowice"]
[Date "2021.12.18"]
[Round "5.4"]
[White "Dragnev, Valentin"]
[Black "Fridman, Daniel"]
[Result "0-1"]
[ECO "B11"]
[WhiteElo "2409"]
[BlackElo "2626"]
[Annotator "ChessBase"]
[PlyCount "128"]
[EventDate "2021.12.18"]
[EventType "swiss"]
[EventCountry "POL"]
[SourceTitle "playchess.com"]
[Source "ChessBase"]
[SourceQuality "1"]
[TimeControl "900+10"]

1. e4 {[%emt 0:00:02]} c6 {[%emt 0:00:02]} 2. Nc3 {[%emt 0:00:03]} d5 {[%emt 0:
00:01]} 3. Nf3 {[%emt 0:00:01]} Bg4 {[%emt 0:00:01]} 4. h3 {[%emt 0:00:02]}
Bxf3 {[%emt 0:00:02]} 5. Qxf3 {[%emt 0:00:01]} e6 {[%emt 0:00:01]} 6. Be2 {
[%emt 0:00:06]} Bc5 {[%emt 0:00:03]} 7. O-O {[%emt 0:00:07]} Nd7 {[%emt 0:00:
02]} 8. exd5 {[%emt 0:00:16]} cxd5 {[%emt 0:00:05]} 9. Rd1 {[%emt 0:00:08]}
Ngf6 {[%emt 0:00:04]} 10. d4 {[%emt 0:00:02]} Be7 {[%emt 0:00:03]} 11. Bd3 {
[%emt 0:00:05]} O-O {[%emt 0:00:07]} 12. Ne2 {[%emt 0:00:06]} Qb8 {[%emt 0:00:
47]} 13. Nf4 {[%emt 0:02:49]} b5 {[%emt 0:03:05]} 14. h4 {[%emt 0:00:46]} Qb7 {
[%emt 0:00:41]} 15. h5 {[%emt 0:00:40]} Bd6 {[%emt 0:01:04]} 16. h6 {[%emt 0:
00:15]} g6 {[%emt 0:00:02]} 17. Qh3 {[%emt 0:03:44]} Rfe8 {[%emt 0:00:54]} 18.
Be3 {[%emt 0:00:21]} b4 {[%emt 0:01:01]} 19. Qh4 {[%emt 0:01:21]} Rac8 {
[%emt 0:02:15]} 20. Nh3 {[%emt 0:00:23]} e5 {[%emt 0:01:55]} 21. dxe5 {[%emt 0:
01:10]} Rxe5 {[%emt 0:00:02]} 22. Bf4 {[%emt 0:00:44]} Rh5 {[%emt 0:00:02]} 23.
Qg3 {[%emt 0:00:01]} Bxf4 {[%emt 0:00:01]} 24. Nxf4 {[%emt 0:02:16]} Rxh6 {
[%emt 0:00:02]} 25. Re1 {[%emt 0:00:13]} Nc5 {[%emt 0:01:46]} 26. Re2 {[%emt 0:
00:56]} Nh5 {[%emt 0:01:59]} 27. Qg5 {[%emt 0:00:21]} Nxf4 {[%emt 0:00:02]} 28.
Qxf4 {[%emt 0:00:01]} Rh5 {[%emt 0:00:11]} 29. Rae1 {[%emt 0:02:06]} Ne6 {
[%emt 0:01:04]} 30. Qf6 {[%emt 0:00:07]} Qc7 {[%emt 0:00:24]} 31. g3 {[%emt 0:
00:22]} Qd8 {[%emt 0:01:06]} 32. Qf3 {[%emt 0:00:35]} Nd4 {[%emt 0:00:20]} 33.
Re8+ {[%emt 0:00:03]} Qxe8 {[%emt 0:00:02]} 34. Rxe8+ {[%emt 0:00:01]} Rxe8 {
[%emt 0:00:01]} 35. Qf6 {[%emt 0:00:13]} Re1+ {[%emt 0:00:02]} 36. Kg2 {
[%emt 0:00:01]} Ne6 {[%emt 0:00:02]} 37. Bf1 {[%emt 0:00:19]} Rf5 {[%emt 0:00:
35]} 38. Qh4 {[%emt 0:00:02]} a5 {[%emt 0:00:10]} 39. a3 {[%emt 0:00:15]} bxa3
{[%emt 0:00:19]} 40. bxa3 {[%emt 0:00:00]} Rc1 {[%emt 0:00:07]} 41. Qa4 {
[%emt 0:00:16]} Nc5 {[%emt 0:00:24]} 42. Qe8+ {[%emt 0:00:25]} Kg7 {[%emt 0:00:
01]} 43. g4 {[%emt 0:00:16]} Rf6 {[%emt 0:00:04]} 44. Qe2 {[%emt 0:00:17]} Ne4
{[%emt 0:00:07]} 45. f3 {[%emt 0:00:07]} Rc6 {[%emt 0:00:04]} 46. Qe3 {[%emt 0:
00:08]} R6xc2+ {[%emt 0:00:19]} 47. Kg1 {[%emt 0:00:01]} Rd2 {[%emt 0:00:15]}
48. fxe4 {[%emt 0:00:08]} Rdd1 {[%emt 0:00:01]} 49. Kg2 {[%emt 0:00:07]} d4 {
[%emt 0:00:44]} 50. Qf2 {[%emt 0:00:12]} Rxf1 51. Qxd4+ f6 {[%emt 0:00:26]} 52.
Qd7+ {[%emt 0:00:18]} Kh6 {[%emt 0:00:04]} 53. Qd2+ {[%emt 0:00:01]} g5 {
[%emt 0:00:07]} 54. Qd6 {[%emt 0:00:23]} Kg6 {[%emt 0:00:35]} 55. Qd7 {[%emt 0:
00:08]} Rg1+ {[%emt 0:00:12]} 56. Kh2 {[%emt 0:00:17]} Rh1+ {[%emt 0:00:13]}
57. Kg2 {[%emt 0:00:02]} Rcg1+ {[%emt 0:00:05]} 58. Kf2 {[%emt 0:00:05]} Rf1+ {
[%emt 0:00:16]} 59. Kg2 {[%emt 0:00:03]} Kh6 {[%emt 0:00:07]} 60. Qf7 {[%emt 0:
00:26]} Rhg1+ {[%emt 0:00:02]} 61. Kh2 {[%emt 0:00:09]} Rxg4 {[%emt 0:00:24]}
62. Qf8+ {[%emt 0:00:12]} Kh5 {[%emt 0:00:04]} 63. Qf7+ {[%emt 0:00:02]} Kh6 {
[%emt 0:00:01]} 64. Qf8+ {[%emt 0:00:02]} Kh5 {[%emt 0:00:03]} 0-1

[Event "European Rapid Championship 2021"]
[Site "Katowice"]
[Date "2021.12.18"]
[Round "5.5"]
[White "Blohberger, Felix"]
[Black "Donchenko, Alexander"]
[Result "0-1"]
[ECO "D02"]
[WhiteElo "2409"]
[BlackElo "2535"]
[Annotator "ChessBase"]
[PlyCount "72"]
[EventDate "2021.12.18"]
[EventType "swiss"]
[EventCountry "POL"]
[SourceTitle "playchess.com"]
[Source "ChessBase"]
[SourceQuality "1"]
[TimeControl "900+10"]

1. d4 {[%emt 0:00:01]} Nf6 {[%emt 0:00:05]} 2. Nf3 {[%emt 0:00:02]} d5 {
[%emt 0:00:04]} 3. Bf4 {[%emt 0:00:02]} c5 {[%emt 0:01:18]} 4. e3 {[%emt 0:00:
06]} Nc6 {[%emt 0:00:02]} 5. Nbd2 {[%emt 0:00:01]} e6 {[%emt 0:00:06]} 6. c3 {
[%emt 0:00:04]} Bd6 {[%emt 0:00:16]} 7. Bg3 {[%emt 0:00:10]} O-O {[%emt 0:00:
22]} 8. Bd3 {[%emt 0:00:02]} b6 {[%emt 0:00:12]} 9. e4 {[%emt 0:00:08]} Be7 {
[%emt 0:00:02]} 10. e5 {[%emt 0:00:01]} Nh5 {[%emt 0:00:02]} 11. Ng5 {[%emt 0:
00:11]} Bxg5 {[%emt 0:00:02]} 12. Qxh5 {[%emt 0:00:02]} g6 {[%emt 0:00:02]} 13.
Qe2 {[%emt 0:00:03]} cxd4 {[%emt 0:00:03]} 14. h4 {[%emt 0:00:41]} Bh6 {
[%emt 0:00:56]} 15. h5 {[%emt 0:00:25]} dxc3 {[%emt 0:00:02]} 16. bxc3 {
[%emt 0:00:02]} Kg7 {[%emt 0:00:54]} 17. Nf3 {[%emt 0:02:53]} Bb7 {[%emt 0:01:
17]} 18. hxg6 {[%emt 0:01:26]} hxg6 {[%emt 0:01:11]} 19. Rxh6 {[%emt 0:02:05]}
Kxh6 {[%emt 0:00:04]} 20. Bh4 {[%emt 0:00:13]} f6 {[%emt 0:02:22]} 21. exf6 {
[%emt 0:00:02]} Qc7 {[%emt 0:02:16]} 22. Qe3+ {[%emt 0:02:01]} Kh7 {[%emt 0:00:
02]} 23. Qg5 {[%emt 0:02:23]} Ne7 {[%emt 0:00:32]} 24. fxe7 {[%emt 0:00:32]}
Qxc3+ {[%emt 0:00:02]} 25. Ke2 {[%emt 0:00:01]} Rf5 {[%emt 0:00:06]} 26. Rc1 {
[%emt 0:01:59]} Qa3 {[%emt 0:01:58]} 27. Bxf5 {[%emt 0:02:16]} Ba6+ {[%emt 0:
00:14]} 28. Ke1 {[%emt 0:00:06]} exf5 {[%emt 0:00:06]} 29. Rc7 {[%emt 0:01:16]}
Re8 {[%emt 0:00:22]} 30. Qf6 {[%emt 0:00:28]} Qb4+ {[%emt 0:00:47]} 31. Nd2 {
[%emt 0:00:20]} Qg4 {[%emt 0:01:37]} 32. f3 {[%emt 0:00:15]} Qxg2 {[%emt 0:00:
02]} 33. Qe5 {[%emt 0:00:10]} Qh1+ {[%emt 0:00:44]} 34. Nf1 {[%emt 0:00:12]}
Qxh4+ {[%emt 0:00:16]} 35. Ng3 {[%emt 0:00:06]} f4 {[%emt 0:00:10]} 36. Kd2 {
[%emt 0:00:05]} fxg3 {[%emt 0:00:09]} 0-1

[Event "European Rapid Championship 2021"]
[Site "Katowice"]
[Date "2021.12.18"]
[Round "5.5"]
[White "Kindler, Przemyslaw"]
[Black "Kosakowski, Jakub"]
[Result "0-1"]
[ECO "B87"]
[WhiteElo "2032"]
[BlackElo "2438"]
[Annotator "NA"]
[PlyCount "98"]
[EventDate "2021.12.18"]
[EventType "swiss"]
[EventCountry "POL"]
[SourceTitle "playchess.com"]
[Source "ChessBase"]
[SourceQuality "1"]
[TimeControl "900+10"]

1. e4 {[%emt 0:00:02]} c5 {[%emt 0:00:04]} 2. Nf3 {[%emt 0:00:02]} d6 {[%emt 0:
00:03]} 3. d4 {[%emt 0:00:02]} cxd4 {[%emt 0:00:02]} 4. Nxd4 {[%emt 0:00:01]}
Nf6 {[%emt 0:00:02]} 5. Nc3 {[%emt 0:00:02]} a6 {[%emt 0:00:02]} 6. Bc4 {
[%emt 0:00:02]} e6 {[%emt 0:00:02]} 7. Bb3 {[%emt 0:00:01]} b5 {[%emt 0:00:03]}
8. Qf3 {[%emt 0:00:02]} Qb6 {[%emt 0:00:13]} 9. Be3 {[%emt 0:00:18]} Qb7 {
[%emt 0:00:02]} 10. e5 {[%emt 0:00:38]} dxe5 {[%emt 0:00:23]} 11. Nde2 {
[%emt 0:01:12]} Qxf3 {[%emt 0:00:03]} 12. gxf3 {[%emt 0:00:01]} Bb7 {[%emt 0:
00:02]} 13. O-O-O {[%emt 0:00:26]} Bxf3 {[%emt 0:00:16]} 14. Rhg1 {[%emt 0:00:
08]} Nbd7 {[%emt 0:00:07]} 15. Rg3 {[%emt 0:00:15]} Bb7 {[%emt 0:00:21]} 16. f4
{[%emt 0:00:31]} exf4 {[%emt 0:00:19]} 17. Nxf4 {[%emt 0:00:05]} O-O-O {
[%emt 0:00:28]} 18. Nxe6 {[%emt 0:00:56]} fxe6 {[%emt 0:00:02]} 19. Bxe6 {
[%emt 0:00:02]} Bc6 {[%emt 0:02:29]} 20. Ne2 {[%emt 0:00:23]} Kb7 {[%emt 0:00:
31]} 21. b4 {[%emt 0:00:22]} Bxb4 {[%emt 0:01:43]} 22. Rxg7 {[%emt 0:00:02]}
Rhe8 {[%emt 0:00:03]} 23. Nd4 {[%emt 0:00:06]} Re7 {[%emt 0:00:12]} 24. Rg3 {
[%emt 0:00:56]} Nc5 {[%emt 0:00:16]} 25. Bg5 {[%emt 0:00:47]} Nxe6 {[%emt 0:00:
38]} 26. Bxf6 {[%emt 0:00:47]} Nxd4 {[%emt 0:00:04]} 27. Kb2 {[%emt 0:00:05]}
Nf5 {[%emt 0:03:08]} 28. Rxd8 {[%emt 0:00:12]} Nxg3 {[%emt 0:00:03]} 29. hxg3 {
[%emt 0:01:21]} Re8 {[%emt 0:00:03]} 30. Rd3 {[%emt 0:00:05]} Be7 {[%emt 0:00:
21]} 31. Bg7 {[%emt 0:00:40]} Rg8 {[%emt 0:00:11]} 32. Be5 {[%emt 0:00:02]} Rg5
{[%emt 0:00:23]} 33. Bf4 {[%emt 0:00:12]} Bf6+ {[%emt 0:00:07]} 34. Kc1 {
[%emt 0:00:12]} Rh5 {[%emt 0:00:10]} 35. g4 {[%emt 0:00:20]} Rd5 {[%emt 0:00:
44]} 36. Rh3 {[%emt 0:00:04]} Bg5 {[%emt 0:00:57]} 37. Rxh7+ {[%emt 0:00:07]}
Kb6 {[%emt 0:00:02]} 38. Rf7 {[%emt 0:00:13]} Be8 {[%emt 0:00:15]} 39. Rf8 {
[%emt 0:00:06]} Bd7 {[%emt 0:00:02]} 40. Kb2 {[%emt 0:00:14]} Bxf4 {[%emt 0:00:
29]} 41. Rxf4 {[%emt 0:00:02]} Rg5 {[%emt 0:00:02]} 42. c4 {[%emt 0:00:09]}
Rxg4 {[%emt 0:01:24]} 43. Rf6+ {[%emt 0:00:02]} Ka5 {[%emt 0:00:08]} 44. c5 {
[%emt 0:00:02]} Rc4 {[%emt 0:00:03]} 45. Rd6 {[%emt 0:00:01]} Be8 {[%emt 0:00:
20]} 46. Re6 {[%emt 0:00:02]} Bf7 {[%emt 0:00:09]} 47. Rc6 {[%emt 0:00:01]}
Rb4+ {[%emt 0:00:08]} 48. Ka1 {[%emt 0:01:36]} Ra4 {[%emt 0:00:07]} 49. Rf6 {
[%emt 0:00:02]} Bxa2 {[%emt 0:00:07]} 0-1

[Event "European Rapid Championship 2021"]
[Site "Katowice"]
[Date "2021.12.18"]
[Round "5.6"]
[White "Wieczorek, Oskar"]
[Black "Klekowski, Maciej"]
[Result "0-1"]
[ECO "B46"]
[WhiteElo "2367"]
[BlackElo "2528"]
[Annotator "ChessBase"]
[PlyCount "78"]
[EventDate "2021.12.18"]
[EventType "swiss"]
[EventCountry "POL"]
[SourceTitle "playchess.com"]
[Source "ChessBase"]
[SourceQuality "1"]
[TimeControl "900+10"]

1. e4 {[%emt 0:00:01]} c5 {[%emt 0:00:01]} 2. Nf3 {[%emt 0:00:02]} Nc6 {
[%emt 0:00:01]} 3. d4 {[%emt 0:00:09]} cxd4 {[%emt 0:00:02]} 4. Nxd4 {[%emt 0:
00:01]} e6 {[%emt 0:00:00]} 5. Nc3 {[%emt 0:00:07]} a6 {[%emt 0:00:03]} 6. Be2
{[%emt 0:00:53]} Qc7 {[%emt 0:00:03]} 7. O-O {[%emt 0:00:03]} Nf6 {[%emt 0:00:
02]} 8. Be3 {[%emt 0:00:01]} Bb4 {[%emt 0:00:04]} 9. Na4 {[%emt 0:00:16]} Be7 {
[%emt 0:00:02]} 10. Nxc6 {[%emt 0:01:33]} bxc6 {[%emt 0:00:01]} 11. Nb6 {
[%emt 0:00:01]} Rb8 {[%emt 0:00:01]} 12. Nxc8 {[%emt 0:00:02]} Qxc8 {[%emt 0:
00:01]} 13. e5 {[%emt 0:00:05]} Nd5 {[%emt 0:00:01]} 14. Bc1 {[%emt 0:00:03]}
c5 {[%emt 0:01:08]} 15. c4 {[%emt 0:01:30]} Nb4 {[%emt 0:00:02]} 16. b3 {
[%emt 0:00:03]} O-O {[%emt 0:00:12]} 17. Bb2 {[%emt 0:00:08]} Qc7 {[%emt 0:00:
11]} 18. Bf3 {[%emt 0:02:12]} Rfd8 {[%emt 0:03:58]} 19. Qe2 {[%emt 0:00:38]} a5
{[%emt 0:01:25]} 20. Rfd1 {[%emt 0:00:51]} Nc6 {[%emt 0:00:27]} 21. Bxc6 {
[%emt 0:02:01]} Qxc6 {[%emt 0:00:01]} 22. Rd3 {[%emt 0:00:02]} a4 {[%emt 0:00:
31]} 23. Rad1 {[%emt 0:00:01]} axb3 {[%emt 0:00:08]} 24. axb3 {[%emt 0:00:02]}
Rb7 {[%emt 0:00:16]} 25. Rh3 {[%emt 0:04:14]} Ra8 {[%emt 0:02:42]} 26. Qc2 {
[%emt 0:00:06]} g6 {[%emt 0:00:16]} 27. Qd2 {[%emt 0:00:46]} Bf8 {[%emt 0:00:
07]} 28. Rf3 {[%emt 0:00:20]} Ra2 {[%emt 0:00:52]} 29. Qf4 {[%emt 0:01:02]} d6
{[%emt 0:00:18]} 30. Bc3 {[%emt 0:00:20]} d5 {[%emt 0:00:40]} 31. cxd5 {
[%emt 0:00:17]} exd5 {[%emt 0:00:00]} 32. e6 {[%emt 0:00:09]} Qxe6 {[%emt 0:00:
31]} 33. Re3 {[%emt 0:00:52]} Qd7 {[%emt 0:00:18]} 34. Be5 {[%emt 0:01:02]} Rb6
{[%emt 0:00:25]} 35. h4 {[%emt 0:00:20]} d4 {[%emt 0:00:30]} 36. Rf3 {[%emt 0:
00:01]} Re6 {[%emt 0:02:04]} 37. b4 {[%emt 0:00:10]} Re2 {[%emt 0:00:02]} 38.
Re3 {[%emt 0:00:34]} Qa4 {[%emt 0:02:01]} 39. Rf1 {[%emt 0:00:30]} dxe3 {
[%emt 0:00:06]} 0-1

[Event "European Rapid Championship 2021"]
[Site "Katowice"]
[Date "2021.12.18"]
[Round "5.7"]
[White "Keinanen, Toivo"]
[Black "Stefansson, Hannes"]
[Result "1-0"]
[ECO "A47"]
[WhiteElo "2341"]
[BlackElo "2519"]
[Annotator "ChessBase"]
[PlyCount "101"]
[EventDate "2021.12.18"]
[EventType "swiss"]
[EventCountry "POL"]
[SourceTitle "playchess.com"]
[Source "ChessBase"]
[SourceQuality "1"]
[TimeControl "900+10"]

1. d4 {[%emt 0:00:02]} Nf6 {[%emt 0:00:01]} 2. Nf3 {[%emt 0:00:01]} b6 {
[%emt 0:00:02]} 3. e3 {[%emt 0:00:01]} Bb7 {[%emt 0:00:01]} 4. Bd3 {[%emt 0:00:
02]} e6 {[%emt 0:00:32]} 5. O-O {[%emt 0:00:31]} d5 {[%emt 0:00:16]} 6. c4 {
[%emt 0:00:54]} dxc4 {[%emt 0:00:19]} 7. Bxc4 {[%emt 0:00:01]} Be7 {[%emt 0:00:
05]} 8. b3 {[%emt 0:02:03]} O-O {[%emt 0:00:12]} 9. Bb2 {[%emt 0:00:12]} Nbd7 {
[%emt 0:00:34]} 10. Qe2 {[%emt 0:00:54]} Ne4 {[%emt 0:00:18]} 11. Nc3 {[%emt 0:
00:24]} Bd6 {[%emt 0:00:35]} 12. Rfd1 {[%emt 0:01:33]} Nxc3 {[%emt 0:02:11]}
13. Bxc3 {[%emt 0:00:01]} Nf6 {[%emt 0:00:06]} 14. Rac1 {[%emt 0:01:07]} Qe7 {
[%emt 0:00:17]} 15. Ba6 {[%emt 0:00:22]} Bd5 {[%emt 0:01:43]} 16. Nd2 {[%emt 0:
01:42]} e5 {[%emt 0:00:27]} 17. dxe5 {[%emt 0:00:52]} Bxe5 {[%emt 0:00:02]} 18.
Bxe5 {[%emt 0:00:05]} Qxe5 {[%emt 0:00:01]} 19. Nf3 {[%emt 0:00:11]} Qe7 {
[%emt 0:00:27]} 20. Bc4 {[%emt 0:00:32]} Bxc4 {[%emt 0:00:25]} 21. Qxc4 {
[%emt 0:00:14]} c5 {[%emt 0:00:06]} 22. Rd3 {[%emt 0:00:12]} Rad8 {[%emt 0:00:
17]} 23. Rcd1 {[%emt 0:00:03]} Rxd3 {[%emt 0:00:02]} 24. Qxd3 {[%emt 0:00:01]}
Rc8 {[%emt 0:00:34]} 25. h3 {[%emt 0:01:14]} h6 {[%emt 0:00:03]} 26. Nh4 {
[%emt 0:02:08]} g6 {[%emt 0:01:23]} 27. Nf3 {[%emt 0:00:00]} Ne4 {[%emt 0:00:
35]} 28. Qd7 {[%emt 0:00:57]} Rc7 {[%emt 0:00:50]} 29. Qxe7 {[%emt 0:00:01]}
Rxe7 {[%emt 0:00:01]} 30. Rd8+ {[%emt 0:00:01]} Kg7 {[%emt 0:00:02]} 31. Kf1 {
[%emt 0:00:01]} Rc7 {[%emt 0:00:07]} 32. Ne5 {[%emt 0:00:47]} b5 {[%emt 0:00:
09]} 33. Rd7 {[%emt 0:01:41]} Rxd7 {[%emt 0:00:05]} 34. Nxd7 {[%emt 0:00:02]}
c4 {[%emt 0:00:06]} 35. bxc4 {[%emt 0:00:04]} bxc4 {[%emt 0:00:01]} 36. Ke1 {
[%emt 0:00:12]} c3 {[%emt 0:00:21]} 37. Ne5 {[%emt 0:00:26]} Kf6 {[%emt 0:00:
58]} 38. Nd3 {[%emt 0:00:24]} c2 {[%emt 0:00:41]} 39. Nc1 {[%emt 0:01:16]} Kg5
{[%emt 0:00:22]} 40. f3 {[%emt 0:00:08]} Nd6 {[%emt 0:00:08]} 41. Kd2 {[%emt 0:
00:23]} Kh4 {[%emt 0:00:13]} 42. Ne2 {[%emt 0:00:02]} Nc4+ {[%emt 0:00:03]} 43.
Kd3 {[%emt 0:00:11]} Na3 {[%emt 0:00:22]} 44. Kd2 {[%emt 0:00:17]} h5 {[%emt 0:
00:12]} 45. f4 {[%emt 0:00:08]} f5 {[%emt 0:00:17]} 46. Ke1 {[%emt 0:00:15]}
Nc4 {[%emt 0:00:21]} 47. Kf2 {[%emt 0:00:06]} Nd6 {[%emt 0:01:34]} 48. Kg1 {
[%emt 0:00:13]} Ne4 {[%emt 0:00:22]} 49. Kh2 {[%emt 0:00:07]} Ng3 {[%emt 0:00:
08]} 50. Nxg3 {[%emt 0:00:14]} c1=Q {[%emt 0:00:02]} 51. Ne2 {[%emt 0:00:08]}
1-0

[Event "European Rapid Championship 2021"]
[Site "Katowice"]
[Date "2021.12.18"]
[Round "5.7"]
[White "Lewtak, Dominik"]
[Black "Wisniewski, Adrian"]
[Result "1/2-1/2"]
[ECO "C00"]
[WhiteElo "2165"]
[BlackElo "2351"]
[Annotator "NA"]
[PlyCount "70"]
[EventDate "2021.12.18"]
[EventType "swiss"]
[EventCountry "POL"]
[SourceTitle "playchess.com"]
[Source "ChessBase"]
[SourceQuality "1"]
[TimeControl "900+10"]

1. e4 {[%emt 0:00:03]} e6 {[%emt 0:00:01]} 2. g3 {[%emt 0:00:03]} d5 {[%emt 0:
00:03]} 3. Bg2 {[%emt 0:00:02]} Nf6 {[%emt 0:00:01]} 4. d3 {[%emt 0:00:13]} c5
{[%emt 0:00:08]} 5. Nd2 {[%emt 0:00:09]} Nc6 {[%emt 0:00:02]} 6. Ngf3 {[%emt 0:
00:07]} Be7 {[%emt 0:00:16]} 7. O-O {[%emt 0:00:03]} dxe4 {[%emt 0:00:19]} 8.
dxe4 {[%emt 0:00:08]} Qc7 {[%emt 0:00:13]} 9. c3 {[%emt 0:00:03]} O-O {[%emt 0:
00:17]} 10. Qc2 {[%emt 0:00:03]} b6 {[%emt 0:00:02]} 11. a4 {[%emt 0:00:09]}
Bb7 {[%emt 0:00:08]} 12. Re1 {[%emt 0:00:17]} Ng4 {[%emt 0:00:58]} 13. Nc4 {
[%emt 0:00:28]} Ba6 {[%emt 0:02:10]} 14. Qb3 {[%emt 0:01:18]} Rad8 {[%emt 0:01:
09]} 15. Bf1 {[%emt 0:01:18]} Bxc4 {[%emt 0:03:21]} 16. Bxc4 {[%emt 0:00:29]}
Nge5 {[%emt 0:02:10]} 17. Nxe5 {[%emt 0:00:03]} Nxe5 {[%emt 0:00:01]} 18. Kg2 {
[%emt 0:00:02]} Nxc4 {[%emt 0:02:24]} 19. Qxc4 {[%emt 0:00:03]} Qc6 {[%emt 0:
00:02]} 20. Be3 {[%emt 0:01:00]} Rd7 {[%emt 0:00:12]} 21. Red1 {[%emt 0:00:48]}
Rfd8 {[%emt 0:00:01]} 22. Rxd7 {[%emt 0:00:02]} Qxd7 {[%emt 0:00:02]} 23. b4 {
[%emt 0:00:46]} Qd3 {[%emt 0:01:02]} 24. Qxd3 {[%emt 0:00:14]} Rxd3 {[%emt 0:
00:02]} 25. bxc5 {[%emt 0:00:46]} Bxc5 {[%emt 0:00:35]} 26. Bxc5 {[%emt 0:00:
03]} bxc5 {[%emt 0:00:02]} 27. Rb1 {[%emt 0:00:04]} Kf8 {[%emt 0:00:18]} 28.
Rb7 {[%emt 0:00:20]} a6 {[%emt 0:01:13]} 29. Ra7 {[%emt 0:02:40]} Rxc3 {
[%emt 0:00:04]} 30. Rxa6 {[%emt 0:00:02]} Ra3 {[%emt 0:00:30]} 31. e5 {[%emt 0:
00:40]} c4 {[%emt 0:00:01]} 32. Kf1 {[%emt 0:00:14]} Ra2 {[%emt 0:00:01]} 33.
Ke1 {[%emt 0:01:28]} h5 {[%emt 0:00:25]} 34. h4 {[%emt 0:00:07]} c3 {[%emt 0:
00:19]} 35. Rc6 {[%emt 0:01:25]} Rxa4 {[%emt 0:00:04]} 1/2-1/2